bitfinex-derivatives/quotes_SOLF0:USTF0_20251101
["timestamp","ask_amount","ask_price","bid_price","bid_amount"]
[1761985876916,2.85,186.18,186.1,14.69231961]
[1761985877122,2.85,186.18,186.11,2.87]
[1761985877511,2.85,186.16,186.11,2.87]
[1761985877712,4.43676234,186.15,186.11,2.87]
[1761985877917,7.28676234,186.14,186.11,2.87]
[1761985878118,7.28676234,186.13,186.11,2.87]
[1761985878323,4.43676234,186.12,186.11,2.87]
[1761985878724,7.6862,186.2,186.12,2.87]
[1761985878926,2.85,186.19,186.15,2.87]
[1761985880827,4.4260011,186.18,186.15,2.87]
[1761985881124,4.4260011,186.17,186.15,2.87]
[1761985881314,4.4260011,186.16,186.15,2.87]
[1761985890643,7.2860011,186.16,186.14,2.81]
[1761985890932,8.86407066,186.15,186.14,2.81]
[1761985903841,11.72407066,186.15,186.13,2.81]
[1761985904148,11.72407066,186.14,186.12,61.59]
[1761985904349,8.86407066,186.13,186.12,61.59]
[1761985907651,8.86407066,186.13,186.12,71.58326906]
[1761985914959,8.86407066,186.13,186.12,88.66326906]
[1761985915460,8.864467,186.13,186.12,88.66326906]
[1761985920566,8.864467,186.13,186.12,78.67]
[1761985921269,8.864467,186.13,186.12,88.65209343]
[1761985921864,2.86,186.16,186.12,14.07692062]
[1761985922168,2.86,186.16,186.13,86.60932582]
[1761985922365,2.86,186.16,186.14,4.09482719]
[1761985922565,2.86,186.16,186.15,4.09482719]
[1761985922765,2.86,186.16,186.13,82.51449863]
[1761985924360,2.86,186.16,186.14,2.69]
[1761985924572,2.85746602,186.24,186.15,2.69]
[1761985924866,2.92,186.18,186.16,6.65449863]
[1761985927056,2.92,186.18,186.15,75.86]
[1761985927562,2.92,186.18,186.14,82.51449863]
[1761985928070,2.92,186.17,186.14,82.51449863]
[1761985930071,2.92,186.17,186.14,6.65449863]
[1761985930267,2.92,186.17,186.14,82.51449863]
[1761985930664,2.92,186.17,186.14,75.86]
[1761985932167,2.92,186.16,186.12,82.51449863]
[1761985932872,2.92,186.16,186.12,75.86]
[1761985933072,2.92,186.15,186.12,75.86]
[1761985933973,11.67697239,186.14,186.12,75.86]
[1761985934174,8.75697239,186.13,186.12,75.86]
[1761985934975,11.67697239,186.13,186.12,75.86]
[1761985939077,8.75697239,186.13,186.12,78.76]
[1761985939274,4.41295314,186.13,186.12,78.76]
[1761985939480,6.71024452,186.27,186.12,83.59449863]
[1761985939778,2.83,186.31,186.23,4.98531685]
[1761985939978,2.83,186.31,186.25,4.98531685]
[1761985940386,2.83,186.31,186.26,4.98531685]
[1761985940674,2.83,186.31,186.27,80.88531685]
[1761985940878,2.83,186.31,186.28,84.96368276]
[1761985941069,2.83,186.31,186.29,4.07836591]
[1761985941266,2.83,186.31,186.3,4.07836591]
[1761985941677,2.83,186.31,186.3,9.06368276]
[1761985942381,2.83,186.38,186.3,4.07836591]
[1761985942673,2.83,186.38,186.31,4.07836591]
[1761985942877,7.6616,186.38,186.32,4.07836591]
[1761985943082,2.83,186.37,186.33,4.07836591]
[1761985943278,2.83,186.37,186.29,4.98531685]
[1761985943484,2.83,186.37,186.3,4.40442486]
[1761985943784,2.83,186.37,186.31,4.40442486]
[1761985944082,2.83,186.37,186.32,4.40442486]
[1761985944276,2.83,186.37,186.33,4.40442486]
[1761985944469,2.83,186.37,186.29,4.98531685]
[1761985944672,2.83,186.37,186.3,4.40317784]
[1761985944869,2.83,186.37,186.31,4.40317784]
[1761985945083,2.83,186.35,186.32,4.40317784]
[1761985945271,2.83,186.35,186.28,80.88531685]
[1761985945578,2.83,186.35,186.29,4.40064905]
[1761985945777,2.83,186.35,186.3,4.40064905]
[1761985945985,2.83,186.35,186.31,4.40064905]
[1761985946187,2.83,186.35,186.32,4.40064905]
[1761985946380,2.83,186.35,186.28,80.88531685]
[1761985946574,2.83,186.35,186.29,4.39864978]
[1761985946782,2.83,186.35,186.3,4.39864978]
[1761985946982,2.83,186.35,186.31,4.39864978]
[1761985947286,2.83,186.35,186.32,4.39864978]
[1761985947485,2.83,186.35,186.27,80.88531685]
[1761985947684,2.83,186.35,186.28,4.39794644]
[1761985947884,2.83,186.35,186.29,4.39794644]
[1761985948081,2.83,186.35,186.3,4.39794644]
[1761985948281,2.83,186.35,186.31,4.39794644]
[1761985948489,2.83,186.35,186.27,80.88531685]
[1761985948690,2.83,186.35,186.28,4.39614179]
[1761985948879,2.83,186.35,186.29,4.39614179]
[1761985949081,2.83,186.35,186.3,4.39614179]
[1761985949281,2.83,186.33,186.31,4.39614179]
[1761985949483,2.83,186.33,186.27,80.88531685]
[1761985949684,2.83,186.33,186.28,4.39456539]
[1761985949884,2.83,186.33,186.29,4.39456539]
[1761985950080,2.83,186.31,186.3,4.39456539]
[1761985950282,2.83,186.31,186.3,4.39432502]
[1761985950486,2.83,186.31,186.25,32.62531685]
[1761985950681,2.83,186.31,186.26,4.39489672]
[1761985950893,2.83,186.31,186.27,4.39489672]
[1761985951091,2.83,186.31,186.28,4.39489672]
[1761985951295,7.04391795,186.3,186.24,4.98531685]
[1761985951590,2.83,186.28,186.25,4.39453407]
[1761985951792,2.83,186.28,186.26,4.39453407]
[1761985952094,2.83,186.26,186.22,4.98531685]
[1761985952295,2.83,186.26,186.23,4.39566689]
[1761985952497,2.83,186.26,186.24,4.39566689]
[1761985952685,2.83,186.26,186.25,4.39566689]
[1761985952887,11.26325708,186.26,186.25,4.39566689]
[1761985953089,7.04893343,186.26,186.25,4.39566689]
[1761985955597,11.88343343,186.26,186.25,4.39566689]
[1761985955797,2.83,186.25,186.19,4.98531685]
[1761985956008,7.04893343,186.24,186.2,9.38481815]
[1761985956302,2.83,186.24,186.21,4.3995013]
[1761985956488,2.83,186.24,186.22,4.3995013]
[1761985956684,2.83,186.24,186.23,4.3995013]
[1761985957085,7.04947097,186.24,186.23,4.3995013]
[1761985959702,9.49099973,186.26,186.23,4.3995013]
[1761985960001,8.43507158,186.25,186.24,4.3995013]
[1761985960586,2.83,186.28,186.24,4.3995013]
[1761985960786,11.2642241,186.27,186.25,4.3995013]
[1761985960992,11.2642241,186.27,186.22,4.98531685]
[1761985960993,2.83,186.27,186.26,4.3995013]
[1761985961395,11.26422304,186.27,186.26,4.3995013]
[1761985962304,16.09852304,186.27,186.26,4.3995013]
[1761985964197,13.26852304,186.27,186.26,4.3995013]
[1761985965898,16.09852304,186.27,186.26,4.3995013]
[1761985966805,16.09852304,186.27,186.2,4.98531685]
[1761985966806,2.93,186.24,186.2,4.98531685]
[1761985968700,2.93,186.23,186.2,4.98531685]
[1761985968895,2.93,186.23,186.13,45.10649973]
[1761985968896,2.93,186.23,186.19,4.98531685]
[1761985969096,11.9891124,186.22,186.18,4.98531685]
[1761985969296,2.93,186.22,186.18,4.98531685]
[1761985969505,2.93,186.25,186.19,4.98531685]
[1761985969701,2.93,186.23,186.19,4.98531685]
[1761985970304,2.93,186.21,186.19,4.98531685]
[1761985970906,2.93,186.21,186.18,4.98531685]
[1761985973309,2.93,186.21,186.19,4.98531685]
[1761985973616,2.93,186.21,186.18,4.98531685]
[1761985974113,2.93,186.19,186.17,4.98531685]
[1761985974407,2.93,186.19,186.16,4.98531685]
[1761985975113,2.93,186.19,186.15,4.98531685]
[1761985975302,2.93,186.19,186.16,4.98531685]
[1761985976310,7.15725847,186.18,186.16,4.98531685]
[1761985976511,2.93,186.18,186.16,4.98531685]
[1761985978711,2.93,186.18,186.17,4.37856321]
[1761985978914,7.15836389,186.18,186.17,4.37856321]
[1761985979408,11.34271052,186.18,186.17,4.37856321]
[1761985981113,11.29462077,186.18,186.17,4.37856321]
[1761985981904,8.36462077,186.18,186.17,4.37856321]
[1761985982311,4.18049368,186.18,186.17,4.37856321]
[1761985982504,2.93,186.2,186.17,4.37856321]
[1761985982703,11.29710739,186.19,186.18,4.37856321]
[1761985986802,8.36710739,186.19,186.18,4.37856321]
[1761985989617,11.29710739,186.19,186.18,4.37856321]
[1761985994318,11.29710739,186.19,186.18,9.36388006]
[1761985996425,11.30679061,186.19,186.18,9.36388006]
[1761985998226,11.30679061,186.19,186.18,4.37856321]
[1761985998615,11.30679061,186.19,186.18,9.36388006]
[1761986000227,8.37679061,186.19,186.18,9.36388006]
[1761986000420,2.92,186.25,186.18,11.02565235]
[1761986000626,2.92,186.25,186.21,4.98104034]
[1761986000822,2.92,186.25,186.22,4.37856321]
[1761986001130,2.92,186.25,186.23,4.37856321]
[1761986001328,2.92,186.25,186.24,4.37856321]
[1761986006127,2.92,186.23,186.18,6.64708914]
[1761986006321,2.92,186.22,186.18,6.64708914]
[1761986006526,2.92,186.22,186.19,6.64708914]
[1761986006722,2.92,186.22,186.16,9.97063371]
[1761986006723,2.92,186.22,186.17,6.64708914]
[1761986006921,7.7557,186.22,186.17,6.64708914]
[1761986007132,2.92,186.21,186.17,6.64708914]
[1761986008032,2.92,186.21,186.18,6.64708914]
[1761986008232,7.7557,186.22,186.18,6.64708914]
[1761986008434,4.8357,186.22,186.18,6.64708914]
[1761986008630,4.8357,186.22,186.19,6.64708914]
[1761986009432,7.7557,186.22,186.19,6.64708914]
[1761986009833,2.86,186.2,186.18,6.64708914]
[1761986011840,2.86,186.2,186.17,6.64708914]
[1761986012437,8.77940491,186.19,186.17,6.64708914]
[1761986012741,8.77940491,186.18,186.17,6.64708914]
[1761986018051,8.77940491,186.18,186.17,10.82691631]
[1761986023450,8.77940491,186.18,186.17,4.17982717]
[1761986026160,8.77940491,186.18,186.17,4.17855946]
[1761986030764,7.7753,186.23,186.17,14.14919317]
[1761986030958,4.15069373,186.22,186.19,6.65200111]
[1761986031154,4.15069373,186.21,186.2,4.17855946]
[1761986031658,4.15069373,186.21,186.18,6.65200111]
[1761986031855,4.15069373,186.2,186.18,6.65200111]
[1761986032056,7.7753,186.23,186.18,6.65200111]
[1761986032057,4.15069373,186.19,186.18,6.65200111]
[1761986032361,7.7748,186.25,186.18,1.08]
[1761986032561,7.09025424,186.24,186.19,6.6536963]
[1761986032757,4.15025424,186.23,186.19,6.6536963]
[1761986032959,4.15025424,186.22,186.19,6.6536963]
[1761986033162,4.15025424,186.21,186.19,6.6536963]
[1761986033364,4.15025424,186.2,186.19,6.6536963]
[1761986033959,4.15025424,186.2,186.17,9.97063371]
[1761986034165,2.94,186.24,186.17,9.97063371]
[1761986034367,4.14959378,186.23,186.2,6.6510968]
[1761986034565,4.14959378,186.22,186.2,6.6510968]
[1761986034762,4.14959378,186.21,186.2,6.6510968]
[1761986038163,2.94,186.26,186.18,9.97063371]
[1761986038362,7.08753144,186.25,186.21,6.64949]
[1761986038567,4.14753144,186.24,186.21,6.64949]
[1761986038870,4.14753144,186.23,186.21,6.64949]
[1761986039172,4.14753144,186.22,186.21,6.64949]
[1761986040371,4.14753144,186.24,186.21,6.64949]
[1761986040562,4.14753144,186.23,186.21,6.64949]
[1761986040758,4.14753144,186.22,186.21,6.64949]
[1761986040964,2.94,186.29,186.21,4.8355]
[1761986041168,2.94,186.29,186.23,6.64696441]
[1761986041570,7.7729,186.32,186.24,6.64696441]
[1761986041772,2.94,186.32,186.24,6.64696441]
[1761986041966,2.94,186.32,186.25,6.64696441]
[1761986042872,4.33390925,186.31,186.25,6.64696441]
[1761986043066,4.33390925,186.3,186.25,6.64696441]
[1761986043267,4.33390925,186.29,186.25,6.64696441]
[1761986043573,4.33390925,186.28,186.25,6.64696441]
[1761986043775,4.33390925,186.27,186.25,6.64696441]
[1761986044071,4.33390925,186.26,186.25,6.64696441]
[1761986044277,2.94,186.32,186.24,6.64696441]
[1761986044471,4.33119785,186.31,186.24,6.64696441]
[1761986044778,4.33119785,186.3,186.24,6.64696441]
[1761986044977,4.33119785,186.29,186.24,6.64696441]
[1761986045179,4.33119785,186.28,186.25,6.64696441]
[1761986045474,4.33119785,186.27,186.25,6.64696441]
[1761986045678,2.94,186.32,186.25,6.64696441]
[1761986045976,4.32970374,186.31,186.25,6.64696441]
[1761986046177,4.32970374,186.3,186.24,6.64696441]
[1761986046378,4.32970374,186.29,186.24,6.64696441]
[1761986046576,4.32970374,186.28,186.24,6.64696441]
[1761986046872,2.94,186.32,186.24,6.64696441]
[1761986047073,4.32814472,186.31,186.24,6.64696441]
[1761986047274,4.32814472,186.3,186.24,6.64696441]
[1761986047474,4.32814472,186.29,186.24,6.64696441]
[1761986047674,4.32814472,186.28,186.24,6.64696441]
[1761986047876,2.94,186.32,186.24,6.64696441]
[1761986048074,4.3267651,186.31,186.24,6.64696441]
[1761986048380,4.3267651,186.3,186.24,6.64696441]
[1761986048568,4.3267651,186.29,186.24,6.64696441]
[1761986048768,4.3267651,186.28,186.24,6.64696441]
[1761986048974,2.94,186.32,186.24,6.64696441]
[1761986049172,7.26554066,186.31,186.24,6.64696441]
[1761986049373,4.32554066,186.3,186.24,6.64696441]
[1761986049573,4.32554066,186.29,186.24,6.64696441]
[1761986049773,4.32554066,186.28,186.24,6.64696441]
[1761986049974,2.94,186.31,186.24,6.64696441]
[1761986050171,7.26414803,186.3,186.24,6.64696441]
[1761986050381,2.94,186.3,186.24,6.64696441]
[1761986058690,2.94,186.3,186.23,11.48196441]
[1761986059190,2.94,186.3,186.23,6.64696441]
[1761986060888,2.82,186.28,186.22,6.64696441]
[1761986064086,2.82,186.26,186.2,6.64696441]
[1761986065298,2.85797875,186.31,186.18,82.46696441]
[1761986065299,2.82,186.24,186.18,82.46696441]
[1761986065689,2.82,186.24,186.19,6.64696441]
[1761986066000,2.82,186.24,186.22,4.96668956]
[1761986071293,2.82,186.24,186.23,4.96668956]
[1761986072392,7.1272253,186.24,186.23,4.96668956]
[1761986072991,7.1272253,186.24,186.22,4.96668956]
[1761986073192,2.82,186.24,186.22,4.96668956]
[1761986074202,2.82,186.24,186.23,4.96668956]
[1761986074508,7.12940765,186.24,186.23,4.96668956]
[1761986074797,11.29901237,186.24,186.22,4.96668956]
[1761986075002,4.30940765,186.23,186.22,4.96668956]
[1761986075904,11.43013145,186.23,186.22,4.96668956]
[1761986076296,7.1207238,186.23,186.22,4.96668956]
[1761986076606,2.95,186.22,186.19,6.64696441]
[1761986078204,2.95,186.22,186.2,6.64696441]
[1761986079005,2.95,186.22,186.19,6.64696441]
[1761986079309,2.95,186.22,186.2,6.64696441]
[1761986081400,7.7855,186.22,186.2,6.64696441]
[1761986081601,2.95,186.2,186.19,4.98129846]
[1761986081805,2.95,186.19,186.18,4.98129846]
[1761986082009,11.43817372,186.19,186.18,4.98129846]
[1761986083104,8.48817372,186.19,186.18,4.98129846]
[1761986083708,11.43817372,186.19,186.18,4.98129846]
[1761986084415,4.31363706,186.19,186.18,4.0811961]
[1761986086211,7.26363706,186.19,186.18,4.0811961]
[1761986086415,7.26363706,186.19,186.18,9.05842694]
[1761986087200,7.26363706,186.19,186.18,4.0811961]
[1761986087414,11.4332403,186.19,186.18,4.0811961]
[1761986089213,7.26363706,186.19,186.18,4.0811961]
[1761986091727,2.95,186.18,186.16,4.97723084]
[1761986091928,4.31363706,186.17,186.16,4.97723084]
[1761986092330,7.26363706,186.17,186.16,4.97723084]
[1761986093128,4.31363706,186.17,186.16,4.97723084]
[1761986096125,7.26363706,186.17,186.16,4.97723084]
[1761986096935,4.31363706,186.17,186.16,4.97723084]
[1761986098339,4.31363706,186.17,186.14,82.48696441]
[1761986098536,4.31363706,186.16,186.14,82.48696441]
[1761986098737,2.95,186.2,186.14,82.48696441]
[1761986098940,7.72501333,186.19,186.17,4.97044538]
[1761986099239,4.77501333,186.18,186.17,4.97044538]
[1761986099740,7.72501333,186.18,186.17,4.97044538]
[1761986101433,2.95,186.17,186.16,4.97044538]
[1761986101637,7.72501333,186.17,186.16,4.97044538]
[1761986101838,7.72501333,186.17,186.1,1.82801582]
[1761986101839,2.95,186.16,186.15,4.97044538]
[1761986102034,7.72501333,186.16,186.15,4.97044538]
[1761986102235,2.95,186.15,186.14,4.97044538]
[1761986102434,2.95,186.15,186.13,44.2]
[1761986102435,2.95,186.14,186.13,4.97044538]
[1761986102635,7.72501333,186.14,186.13,4.97044538]
[1761986104436,7.72501333,186.14,186.12,4.97044538]
[1761986104738,4.77501333,186.13,186.12,4.97044538]
[1761986105529,7.72501333,186.13,186.12,4.97044538]
[1761986105736,7.72501333,186.13,186.11,80.81044538]
[1761986105936,7.72501333,186.12,186.11,80.81044538]
[1761986106345,4.77501333,186.12,186.11,80.81044538]
[1761986106735,7.72501333,186.12,186.11,80.81044538]
[1761986106937,7.72501333,186.12,186.11,75.84]
[1761986108041,7.72501333,186.12,186.1,80.83044538]
[1761986108343,4.77501333,186.11,186.1,80.83044538]
[1761986108939,7.72501333,186.11,186.1,80.83044538]
[1761986109343,4.77501333,186.11,186.1,80.83044538]
[1761986109847,4.77501333,186.11,186.1,4.97044538]
[1761986110037,4.77501333,186.11,186.1,80.83044538]
[1761986110545,4.77582626,186.11,186.1,75.86]
[1761986113145,4.77582626,186.11,186.1,80.83401587]
[1761986113349,4.77582626,186.11,186.1,75.86]
[1761986114152,4.77582626,186.11,186.1,80.83494351]
[1761986114451,4.77582626,186.11,186.1,75.86]
[1761986118357,2.8,186.23,186.1,85.41498023]
[1761986118651,2.8,186.23,186.17,4.97556833]
[1761986118852,2.8,186.23,186.16,1.82801582]
[1761986118853,2.8,186.26,186.19,4.97556833]
[1761986120257,2.8,186.26,186.2,4.97556833]
[1761986120453,2.8,186.26,186.21,4.97556833]
[1761986120649,2.8,186.26,186.22,75.86]
[1761986124255,2.8,186.26,186.21,75.86]
[1761986127961,2.76,186.25,186.21,75.86]
[1761986128363,2.76,186.25,186.21,75.84]
[1761986130257,2.76,186.23,186.21,75.84]
[1761986130457,9.51370162,186.24,186.21,75.84]
[1761986130458,7.43860162,186.22,186.21,75.84]
[1761986130853,2.76,186.22,186.21,75.84]
[1761986131060,7.43861609,186.22,186.21,75.84]
[1761986133762,4.67861609,186.22,186.21,75.84]
[1761986133968,7.52861609,186.22,186.21,75.84]
[1761986134164,2.85,186.21,186.18,75.84]
[1761986134363,4.67861609,186.2,186.18,75.84]
[1761986134558,4.67861609,186.19,186.18,75.84]
[1761986137163,4.67861609,186.19,186.18,80.81556833]
[1761986137371,4.67861609,186.19,186.18,75.84]
[1761986138774,4.67861609,186.19,186.18,80.81556833]
[1761986139872,2.85,186.25,186.18,75.84]
[1761986140071,4.6771639,186.24,186.19,4.97221026]
[1761986140274,4.6771639,186.23,186.19,4.97221026]
[1761986140570,4.6771639,186.22,186.19,4.97221026]
[1761986140876,4.6771639,186.21,186.19,4.97221026]
[1761986141071,4.6771639,186.2,186.19,4.97221026]
[1761986142872,2.85,186.25,186.19,4.97221026]
[1761986143073,4.67626709,186.24,186.2,4.97221026]
[1761986143271,4.67626709,186.23,186.21,75.84]
[1761986143475,4.67626709,186.22,186.21,75.84]
[1761986144275,2.85,186.32,186.21,81.89221026]
[1761986144477,2.85,186.3,186.22,4.97221026]
[1761986144774,4.67532219,186.29,186.23,4.97221026]
[1761986144972,4.67532219,186.28,186.24,75.84]
[1761986145175,4.67532219,186.27,186.24,75.84]
[1761986145377,4.67532219,186.26,186.24,75.84]
[1761986145569,4.67532219,186.25,186.24,75.84]
[1761986147378,2.73,186.28,186.24,75.84]
[1761986147573,4.65506602,186.27,186.24,75.84]
[1761986147780,4.65506602,186.26,186.24,75.84]
[1761986148080,2.73,186.24,186.22,75.84]
[1761986148281,4.65509654,186.23,186.2,4.97221026]
[1761986148482,2.73,186.27,186.21,80.81221026]
[1761986148680,2.85664117,186.35,186.21,80.81221026]
[1761986148681,7.3855139,186.26,186.21,80.81221026]
[1761986148883,4.6555139,186.25,186.21,80.81221026]
[1761986149184,4.6555139,186.24,186.21,80.81221026]
[1761986149480,4.6555139,186.23,186.21,80.81221026]
[1761986149679,2.73,186.26,186.21,80.81221026]
[1761986149974,4.65541235,186.25,186.21,80.81221026]
[1761986150182,4.65541235,186.24,186.21,80.81221026]
[1761986150479,4.65541235,186.23,186.21,80.81221026]
[1761986150681,2.73,186.26,186.21,80.81221026]
[1761986150882,4.65548558,186.25,186.21,80.81221026]
[1761986151075,4.65548558,186.24,186.21,80.81221026]
[1761986151281,4.65548558,186.23,186.21,80.81221026]
[1761986151483,2.73,186.26,186.21,80.81221026]
[1761986151680,4.65593417,186.25,186.21,80.81221026]
[1761986151879,4.65593417,186.24,186.21,80.81221026]
[1761986152084,4.65593417,186.23,186.21,80.81221026]
[1761986152380,2.73,186.26,186.21,80.81221026]
[1761986152580,4.65664353,186.25,186.21,80.81221026]
[1761986152780,4.65664353,186.24,186.21,80.81221026]
[1761986152980,4.65664353,186.23,186.21,80.81221026]
[1761986153182,2.73,186.26,186.21,80.81221026]
[1761986153382,4.65749442,186.25,186.21,80.81221026]
[1761986153582,4.65749442,186.24,186.21,80.81221026]
[1761986153783,4.65749442,186.23,186.21,80.81221026]
[1761986153984,2.73,186.26,186.21,80.81221026]
[1761986154286,4.65749442,186.25,186.21,80.81221026]
[1761986154474,4.65749442,186.24,186.21,80.81221026]
[1761986154679,4.65749442,186.23,186.21,80.81221026]
[1761986154979,2.73,186.26,186.21,80.81221026]
[1761986155290,4.65849746,186.25,186.21,80.81221026]
[1761986155483,4.65849746,186.24,186.21,80.81221026]
[1761986155682,4.65849746,186.23,186.21,80.81221026]
[1761986155884,2.73,186.26,186.21,80.81221026]
[1761986156082,4.65966247,186.25,186.22,4.97221026]
[1761986156283,4.65966247,186.24,186.22,4.97221026]
[1761986156479,4.65966247,186.23,186.22,4.97221026]
[1761986157689,4.65966247,186.23,186.21,82.48696441]
[1761986157889,4.66213315,186.22,186.21,75.84]
[1761986161293,4.66213315,186.22,186.21,82.48696441]
[1761986161792,4.66213315,186.22,186.21,75.84]
[1761986165993,4.66213315,186.22,186.19,9.97063371]
[1761986166195,4.66213315,186.21,186.2,75.82]
[1761986169903,4.67667563,186.21,186.2,75.82]
[1761986170093,2.73,186.2,186.18,9.97063371]
[1761986170294,4.67667563,186.19,186.17,6.65635702]
[1761986170496,2.73,186.27,186.18,2.85664117]
[1761986170699,2.85664117,186.34,186.23,4.99239695]
[1761986170700,2.73,186.25,186.23,4.99239695]
[1761986170996,2.73,186.25,186.24,4.99239695]
[1761986171201,7.1675436,186.25,186.23,4.99239695]
[1761986171394,17.87751194,186.37,186.22,23.94]
[1761986171395,2.73,186.23,186.22,4.99239695]
[1761986171594,2.73,186.22,186.21,4.99239695]
[1761986171908,7.1675436,186.22,186.21,4.99239695]
[1761986172599,8.2475436,186.22,186.21,4.99239695]
[1761986174805,2.73,186.21,186.2,4.99239695]
[1761986175006,2.73,186.2,186.19,4.99239695]
[1761986175198,7.1675436,186.2,186.18,4.99239695]
[1761986175501,4.4375436,186.19,186.18,4.99239695]
[1761986175707,4.4375436,186.19,186.17,82.55652927]
[1761986175908,4.4375436,186.18,186.17,82.55652927]
[1761986177305,4.4375436,186.18,186.17,75.9]
[1761986180204,4.43732338,186.18,186.17,75.9]
[1761986182511,9.02650732,186.18,186.17,75.9]
[1761986191422,2.17835295,186.18,186.17,75.9]
[1761986191721,7.6546,186.26,186.17,77.72861154]
[1761986191925,2.82,186.24,186.2,6.81480562]
[1761986192126,7.40735669,186.23,186.21,75.84]
[1761986192328,4.58735669,186.22,186.21,75.84]
[1761986192925,4.58735669,186.22,186.21,80.82619408]
[1761986199033,4.58735669,186.22,186.21,75.84]
[1761986203534,9.02194672,186.22,186.21,75.84]
[1761986204033,9.02194672,186.22,186.2,8.47687031]
[1761986204233,9.02194672,186.21,186.2,8.47687031]
[1761986204531,9.02194672,186.21,186.2,82.09687031]
[1761986206436,4.8339,186.29,186.2,85.41924525]
[1761986206638,2.73,186.29,186.26,1.82861154]
[1761986206842,2.73,186.3,186.27,4.98677197]
[1761986209241,2.73,186.3,186.26,82.63538351]
[1761986210140,2.73,186.3,186.26,80.80677197]
[1761986213725,2.73,186.31,186.26,80.80677197]
[1761986213927,2.73,186.31,186.27,4.98677197]
[1761986214336,2.73,186.31,186.26,80.80677197]
[1761986215137,2.73,186.3,186.26,80.80677197]
[1761986218135,7.5636,186.3,186.26,80.80677197]
[1761986218341,2.73,186.28,186.26,75.82]
[1761986218641,2.73,186.26,186.25,75.82]
[1761986218831,11.60617579,186.26,186.25,75.82]
[1761986219540,8.87617579,186.26,186.25,75.82]
[1761986222235,8.87617579,186.26,186.25,80.80677197]
[1761986223948,8.87617579,186.26,186.25,75.82]
[1761986226949,8.87617579,186.26,186.25,80.80677197]
[1761986230047,11.60617579,186.26,186.25,80.80677197]
[1761986230551,11.60617579,186.26,186.25,4.98677197]
[1761986230951,8.87617579,186.26,186.25,4.98677197]
[1761986233248,8.87617579,186.26,186.24,75.82]
[1761986233447,8.87617579,186.25,186.24,75.82]
[1761986234152,8.87617579,186.25,186.24,82.4690293]
[1761986241259,8.87617579,186.25,186.24,75.82]
[1761986244060,8.87617579,186.25,186.24,6.65362675]
[1761986244261,8.87617579,186.25,186.24,82.45362675]
[1761986247470,11.77617579,186.25,186.24,82.45362675]
[1761986248263,8.87617579,186.25,186.24,82.45362675]
[1761986249872,8.87617579,186.25,186.24,75.8]
[1761986251672,8.87617579,186.25,186.24,79.89365909]
[1761986253474,2.9,186.31,186.24,89.8642928]
[1761986253677,2.9,186.31,186.28,4.99882274]
[1761986255566,4.8334,186.31,186.28,4.99882274]
[1761986255767,2.93,186.3,186.28,4.99882274]
[1761986259377,2.93,186.3,186.29,4.99882274]
[1761986259677,2.93,186.33,186.29,4.99882274]
[1761986259980,2.93,186.33,186.31,4.99813606]
[1761986260179,2.93,186.33,186.3,4.99813606]
[1761986260877,2.93,186.33,186.31,4.99813606]
[1761986265388,11.72305562,186.32,186.31,4.99813606]
[1761986266093,11.72305562,186.32,186.3,4.99813606]
[1761986266294,11.72305562,186.31,186.3,4.99813606]
[1761986274207,8.79305562,186.31,186.3,4.99813606]
[1761986274502,11.72305562,186.31,186.3,4.99813606]
[1761986275694,8.79305562,186.31,186.3,4.99813606]
[1761986276093,11.72305562,186.31,186.3,4.99813606]
[1761986276305,8.79305562,186.31,186.3,4.99813606]
[1761986277591,11.72305562,186.31,186.3,4.99813606]
[1761986278905,8.79305562,186.31,186.3,4.99813606]
[1761986279409,11.72305562,186.31,186.3,4.99813606]
[1761986282108,11.6774733,186.31,186.3,4.99813606]
[1761986284309,8.7474733,186.31,186.3,4.99813606]
[1761986284808,8.7474733,186.31,186.29,6.66509699]
[1761986285010,8.7474733,186.3,186.29,6.66509699]
[1761986286411,8.7474733,186.3,186.28,80.6139]
[1761986286712,8.7474733,186.29,186.28,80.6139]
[1761986292316,8.7452988,186.29,186.28,80.6139]
[1761986296119,8.7452988,186.29,186.28,75.78]
[1761986297716,2.85,186.34,186.28,85.75063371]